{"text_format":"1","workbook":"xlsx","n_sheets":2,"sheets":["Tables","Monthly"],"not_rendered":{"charts":0,"images":0,"macros":1,"external_links":0,"defined_names":0,"comments":0,"pivot_tables":0},"unopened":[],"bounds":{"document_bytes":16777216,"sheet_cells":100000,"rows_first":2000,"rows_last":500,"rows_between":2000,"halvings":0,"cell_chars":16384,"cell_head_chars":4096},"cells_cut":0,"cells_raw":0,"read":"whole","date_system":"1900"}

{"sheet":"Tables","index":0,"n_rows":341,"n_cols":26,"rows_kept":341,"cut":false,"hidden":true,"merged":[]}
["Committee","Budget Account",null,null,null,"Budget Account","Description","Cost Center","Section",null,null,null,null,null,null,null,null,"Description","Account","Cost Center","Section"]
["Buildings & Grounds",1000,null,null,null,1000,"Janitorial",1005,null,null,null,{"$f":"IF(B$34<>2500,_xlfn.UNIQUE(_xlfn._xlws.FILTER(G$2:G$98,(F$2:F$98=B$34)*(H$2:H$98<>1070))),IF(B$34=2500,_xlfn.UNIQUE(_xlfn._xlws.FILTER(G$2:G$98,(F$2:F$98<>1500)*(H$2:H$98<>1070))),\"\"))","v":0},{"$f":"IF(OR(L2=0,L2=\"\"),\"\",PROPER(_xlfn.XLOOKUP(L2,G:G,H:H)&\"-\"&L2))","v":""},null,null,null,null,"Accounting",217000,null,null,null,null,{"$f":"IF(U2<>\"\",U2,IF(T2<>\"\",T2,S2))","v":217000},null,{"$f":"IF(U2<>\"\",U2&\" - \"&_xlfn.XLOOKUP(U2,U:U,R:R),IF(T2<>\"\",T2&\" - \"&_xlfn.XLOOKUP(T2,T:T,R:R),IF(S2<>\"\",S2&\" - \"&_xlfn.XLOOKUP(S2,S:S,R:R),\"\")))","v":"217000 - Accounting"}]
["Education",6000,null,null,null,1000,"Landscaping",1010,null,null,null,null,"",null,null,null,null,"Accounting - Expenses",217000,217010,null,null,null,{"$f":"IF(U3<>\"\",U3,IF(T3<>\"\",T3,S3))","v":217010},null,"217010 - Accounting - Expenses"]
["Finance",1500,null,null,null,1000,"Maintenance",1020,null,null,null,null,"",null,null,null,null,"Accounting - Office Expenses",217000,217020,null,null,null,217020,null,"217020 - Accounting - Office Expenses"]
["Food Services",2000,null,null,null,1000,"Special Projects",1060,null,null,null,null,"",null,null,null,null,"Appliances",101000,null,null,null,null,101000,null,"101000 - Appliances"]
["Leadership Team",2500,null,null,null,1000,"Miscellaneous - Buildings",1090,null,null,null,null,"",null,null,null,null,"Appliances - Freezers",101000,101010,null,null,null,101010,null,"101010 - Appliances - Freezers"]
["Long Range Planning ",3000,null,null,null,1500,"Business Affairs",1510,null,null,null,null,"",null,null,null,null,"Appliances - Refrigerators",101000,101020,null,null,null,101020,null,"101020 - Appliances - Refrigerators"]
["Nominating",3500,null,null,null,1500,"Accounting Expense",1510,1515,null,null,null,"",null,null,null,null,"Appliances - Repair",101000,101030,null,null,null,101030,null,"101030 - Appliances - Repair"]
["Nursery & Preschool",4000,null,null,null,1500,"Licenses & Fees",1510,1511,null,null,null,"",null,null,null,null,"Appliances - Window Air Conditioners",101000,101040,null,null,null,101040,null,"101040 - Appliances - Window Air Conditioners"]
["Outreach",4500,null,null,null,1500,"Office Expenses",1510,1514,null,null,null,"",null,null,null,null,"Audiovisual",102000,null,null,null,null,102000,null,"102000 - Audiovisual"]
["Pulpit Committee",5000,null,null,null,1500,"Property Insurance",1510,1516,null,null,null,"",null,null,null,null,"Audiovisual - Installation",102000,102010,null,null,null,102010,null,"102010 - Audiovisual - Installation"]
["Security",5500,null,null,null,1500,"Sinking Fund",1510,1512,null,null,null,"",null,null,null,null,"Audiovisual - Other Equipment/Supplies",102000,102040,null,null,null,102040,null,"102040 - Audiovisual - Other Equipment/Supplies"]
["Summer Camp",8000,null,null,null,1500,"Ten % Buffer",1510,1513,null,null,null,"",null,null,null,null,"Audiovisual - Repairs/Maintenance",102000,102030,null,null,null,102030,null,"102030 - Audiovisual - Repairs/Maintenance"]
["Worship",6500,null,null,null,1500,"Payroll",1520,null,null,null,null,"",null,null,null,null,"Audiovisual - Screen, Projector, TV, Monitor",102000,102020,null,null,null,102020,null,"102020 - Audiovisual - Screen, Projector, TV, Monitor"]
["Youth",7000,null,null,null,1500,"Payroll - Pastor",1520,1521,null,null,null,"",null,null,null,null,"Audiovisual - Sound System",102000,102050,null,null,null,102050,null,"102050 - Audiovisual - Sound System"]
["Vacation Bible School",7500,null,null,null,1500,"Payroll - Youth Director",1520,1522,null,null,null,"",null,null,null,null,"Building Materials",103000,null,null,null,null,103000,null,"103000 - Building Materials"]
[null,null,null,null,null,1500,"Tax",1530,null,null,null,null,"",null,null,null,null,"Building Materials - Boilers & Heating Equipment",103000,103001,null,null,null,103001,null,"103001 - Building Materials - Boilers & Heating Equipment"]
[null,null,null,null,null,1500,"Tax - Federal",1530,1531,null,null,null,"",null,null,null,null,"Building Materials - Bricks, Clay/Stone Products",103000,103002,null,null,null,103002,null,"103002 - Building Materials - Bricks, Clay/Stone Products"]
[null,null,null,null,null,1500,"Tax - Local",1530,1532,null,null,null,"",null,null,null,null,"Building Materials - Custodial, Cleaning Equipment",103000,103003,null,null,null,103003,null,"103003 - Building Materials - Custodial, Cleaning Equipment"]
[null,null,null,null,null,1500,"Tax - State",1530,1533,null,null,null,"",null,null,null,null,"Building Materials - Custodial, Cleaning Supplies",103000,103004,null,null,null,103004,null,"103004 - Building Materials - Custodial, Cleaning Supplies"]
[null,null,null,null,null,1500,"Utilities",1570,null,null,null,null,"",null,null,null,null,"Building Materials - Custodial, Exterminating",103000,103005,null,null,null,103005,null,"103005 - Building Materials - Custodial, Exterminating"]
[null,null,null,null,null,1500,"Util - Electricity",1570,1571,null,null,null,"",null,null,null,null,"Building Materials - Custodial, Other Equipment",103000,103006,null,null,null,103006,null,"103006 - Building Materials - Custodial, Other Equipment"]
[null,null,null,null,null,1500,"Util - Internet",1570,1572,null,null,null,"",null,null,null,null,"Building Materials - Custodial, Other Supplies",103000,103007,null,null,null,103007,null,"103007 - Building Materials - Custodial, Other Supplies"]
[null,null,null,null,null,1500,"Util - Miscellaneous",1570,1576,null,null,null,"",null,null,null,null,"Building Materials - Electrical Repair Supplies",103000,103008,null,null,null,103008,null,"103008 - Building Materials - Electrical Repair Supplies"]
[null,null,null,null,null,1500,"Util - Telephone",1570,1573,null,null,null,"",null,null,null,null,"Building Materials - Electrical, Motors, Components",103000,103009,null,null,null,103009,null,"103009 - Building Materials - Electrical, Motors, Components"]
[null,null,null,null,null,1500,"Util - Waste Services",1570,1574,null,null,null,"",null,null,null,null,"Building Materials - Engineering Equipment & Supplies",103000,103010,null,null,null,103010,null,"103010 - Building Materials - Engineering Equipment & Supplies"]
[null,null,null,null,null,1500,"Util - Water",1570,1575,null,null,null,"",null,null,null,null,"Building Materials - Fencing",103000,103011,null,null,null,103011,null,"103011 - Building Materials - Fencing"]
[null,null,null,null,null,1500,"Miscellaneous - Finance",1590,null,null,null,null,"",null,null,null,null,"Building Materials - Floor Maintenance Equipment",103000,103046,null,null,null,103046,null,"103046 - Building Materials - Floor Maintenance Equipment"]
[null,null,null,null,null,2000,"Kitchen Equipment & Supplies",2010,null,null,null,null,"",null,null,null,null,"Building Materials - Floor Maintenance Parts/Accessories",103000,103012,null,null,null,103012,null,"103012 - Building Materials - Floor Maintenance Parts/Accessories"]
[null,null,null,null,null,2000,"Cookware",2010,2011,null,null,null,"",null,null,null,null,"Building Materials - Flooring, Carpet",103000,103013,null,null,null,103013,null,"103013 - Building Materials - Flooring, Carpet"]
[null,null,null,null,null,2000,"Dinnerware",2010,2012,null,null,null,"",null,null,null,null,"Building Materials - Flooring, Other",103000,103014,null,null,null,103014,null,"103014 - Building Materials - Flooring, Other"]
[null,null,null,null,null,2000,"Cleaning Supplies",2010,2013,null,null,null,"",null,null,null,null,"Building Materials - Flooring, Resilient",103000,103015,null,null,null,103015,null,"103015 - Building Materials - Flooring, Resilient"]
[null,null,null,null,null,2000,"Food & Beverages",2020,null,null,null,null,"",null,null,null,null,"Building Materials - Flooring, Tile",103000,103016,null,null,null,103016,null,"103016 - Building Materials - Flooring, Tile"]
[{"$f":"Monthly!B$3","v":0},{"$f":"IF(A$34=0,\"\",_xlfn.XLOOKUP(A34,A:A,B:B))","v":""},null,null,null,2000,"Miscellaneous - Food Services",2090,null,null,null,null,{"$f":"IF(OR(L34=0,L34=\"\"),\"\",PROPER(_xlfn.XLOOKUP(L34,G:G,H:H)&\"-\"&L34))","v":""},null,null,null,null,"Building Materials - Hand Tools, Not Powered",103000,103017,null,null,null,103017,null,{"$f":"IF(U34<>\"\",U34&\" - \"&_xlfn.XLOOKUP(U34,U:U,R:R),IF(T34<>\"\",T34&\" - \"&_xlfn.XLOOKUP(T34,T:T,R:R),IF(S34<>\"\",S34&\" - \"&_xlfn.XLOOKUP(S34,S:S,R:R),\"\")))","v":"103017 - Building Materials - Hand Tools, Not Powered"}]
[null,null,null,null,null,2500,"Special Events",2510,null,null,null,null,"",null,null,null,null,"Building Materials - Hand Tools, Powered",103000,103045,null,null,null,103045,null,"103045 - Building Materials - Hand Tools, Powered"]
[null,null,null,null,null,2500,"Transportation",2520,null,null,null,null,"",null,null,null,null,"Building Materials - Hardware and Related Items",103000,103018,null,null,null,103018,null,"103018 - Building Materials - Hardware and Related Items"]
[null,null,null,null,null,2500,"Travel",2530,null,null,null,null,"",null,null,null,null,"Building Materials - Hose, Commercial & Garden",103000,103019,null,null,null,103019,null,"103019 - Building Materials - Hose, Commercial & Garden"]
[null,null,null,null,null,2500,"Miscellaneous - Leadership Team",2590,null,null,null,null,"",null,null,null,null,"Building Materials - HVAC, Balancing Equipment",103000,103020,null,null,null,103020,null,"103020 - Building Materials - HVAC, Balancing Equipment"]
[null,null,null,null,null,3000,"Miscellaneous - LRP",3090,null,null,null,null,"",null,null,null,null,"Building Materials - HVAC, Industrial Equipment",103000,103021,null,null,null,103021,null,"103021 - Building Materials - HVAC, Industrial Equipment"]
[null,null,null,null,null,3500,"Miscellaneous - Nominating",3590,null,null,null,null,"",null,null,null,null,"Building Materials - HVAC, Other",103000,103022,null,null,null,103022,null,"103022 - Building Materials - HVAC, Other"]
[null,null,null,null,null,4000,"Miscellaneous - N&P",4090,null,null,null,null,"",null,null,null,null,"Building Materials - HVAC, Residential",103000,103023,null,null,null,103023,null,"103023 - Building Materials - HVAC, Residential"]
[null,null,null,null,null,4500,"Benevolence",4510,null,null,null,null,"",null,null,null,null,"Building Materials - Industrial Machinery",103000,103024,null,null,null,103024,null,"103024 - Building Materials - Industrial Machinery"]
[null,null,null,null,null,4500,"Event Planner",4520,null,null,null,null,"",null,null,null,null,"Building Materials - Lighting, Ballasts",103000,103025,null,null,null,103025,null,"103025 - Building Materials - Lighting, Ballasts"]
[null,null,null,null,null,4500,"Marketing",4525,null,null,null,null,"",null,null,null,null,"Building Materials - Lighting, Fixtures",103000,103026,null,null,null,103026,null,"103026 - Building Materials - Lighting, Fixtures"]
[null,null,null,null,null,4500,"Missions",4530,null,null,null,null,"",null,null,null,null,"Building Materials - Lighting, Florescent",103000,103027,null,null,null,103027,null,"103027 - Building Materials - Lighting, Florescent"]
[null,null,null,null,null,4500,"Missions - Black Creek",4530,4531,null,null,null,"",null,null,null,null,"Building Materials - Lighting, Incandescent",103000,103028,null,null,null,103028,null,"103028 - Building Materials - Lighting, Incandescent"]
[null,null,null,null,null,4500,"Missions - Fl Baptist Convention",4530,4532,null,null,null,"",null,null,null,null,"Building Materials - Lumber/Wallboard/Siding",103000,103029,null,null,null,103029,null,"103029 - Building Materials - Lumber/Wallboard/Siding"]
[null,null,null,null,null,4500,"Missions - Grief Share",4530,4533,null,null,null,"",null,null,null,null,"Building Materials - Metals: Bar, Sheet",103000,103030,null,null,null,103030,null,"103030 - Building Materials - Metals: Bar, Sheet"]
[null,null,null,null,null,4500,"Missions - Kathy Gould",4530,4534,null,null,null,"",null,null,null,null,"Building Materials - Oil, Grease & Lubricants",103000,103031,null,null,null,103031,null,"103031 - Building Materials - Oil, Grease & Lubricants"]
[null,null,null,null,null,4500,"Missions - Miscellaneous",4530,4535,null,null,null,"",null,null,null,null,"Building Materials - Other",103000,103032,null,null,null,103032,null,"103032 - Building Materials - Other"]
[null,null,null,null,null,4500,"Missions - Projects",4530,4536,null,null,null,"",null,null,null,null,"Building Materials - Painting Equipment & Supplies",103000,103033,null,null,null,103033,null,"103033 - Building Materials - Painting Equipment & Supplies"]
[null,null,null,null,null,4500,"Special Projects",4540,null,null,null,null,"",null,null,null,null,"Building Materials - Pipe, Tubing, Fittings",103000,103034,null,null,null,103034,null,"103034 - Building Materials - Pipe, Tubing, Fittings"]
[null,null,null,null,null,4500,"Miscellaneous - Outreach",4590,null,null,null,null,"",null,null,null,null,"Building Materials - Plumbing, Equipment",103000,103035,null,null,null,103035,null,"103035 - Building Materials - Plumbing, Equipment"]
[null,null,null,null,null,5000,"Miscellaneous - PC",5090,null,null,null,null,"",null,null,null,null,"Building Materials - Plumbing, Fixtures",103000,103036,null,null,null,{"$f":"IF(U54<>\"\",U54,IF(T54<>\"\",T54,S54))","v":103036},null,{"$f":"IF(U54<>\"\",U54&\" - \"&_xlfn.XLOOKUP(U54,U:U,R:R),IF(T54<>\"\",T54&\" - \"&_xlfn.XLOOKUP(T54,T:T,R:R),IF(S54<>\"\",S54&\" - \"&_xlfn.XLOOKUP(S54,S:S,R:R),\"\")))","v":"103036 - Building Materials - Plumbing, Fixtures"}]
[null,null,null,null,null,5500,"Miscellaneous - SEC",5590,null,null,null,null,"",null,null,null,null,"Building Materials - Plumbing, Other",103000,103037,null,null,null,103037,null,"103037 - Building Materials - Plumbing, Other"]
[null,null,null,null,null,6000,"Curriculum",6010,null,null,null,null,"",null,null,null,null,"Building Materials - Plumbing, Supplies",103000,103038,null,null,null,103038,null,"103038 - Building Materials - Plumbing, Supplies"]
[null,null,null,null,null,6000,"Equipment & Supplies",6020,null,null,null,null,"",null,null,null,null,"Building Materials - PreFab Building & Structures",103000,103039,null,null,null,103039,null,"103039 - Building Materials - PreFab Building & Structures"]
[null,null,null,null,null,6000,"Special Programs",6030,null,null,null,null,"",null,null,null,null,"Building Materials - Refrigerator Equipment & Accessories",103000,103040,null,null,null,103040,null,"103040 - Building Materials - Refrigerator Equipment & Accessories"]
[null,null,null,null,null,6000,"Study Groups",6040,null,null,null,null,"",null,null,null,null,"Building Materials - Signs & Sign Materials",103000,103041,null,null,null,103041,null,"103041 - Building Materials - Signs & Sign Materials"]
[null,null,null,null,null,6000,"Adult",6040,6041,null,null,null,"",null,null,null,null,"Building Materials - Steam Fittings & Supplies",103000,103042,null,null,null,103042,null,"103042 - Building Materials - Steam Fittings & Supplies"]
[null,null,null,null,null,6000,"Children",6040,6042,null,null,null,"",null,null,null,null,"Building Materials - Tanks, Mobile & Stationary",103000,103043,null,null,null,103043,null,"103043 - Building Materials - Tanks, Mobile & Stationary"]
[null,null,null,null,null,6000,"College & Career",6040,6043,null,null,null,"",null,null,null,null,"Building Materials - Welding Equipment & Supplies",103000,103044,null,null,null,103044,null,"103044 - Building Materials - Welding Equipment & Supplies"]
[null,null,null,null,null,6000,"Foundations",6040,6044,null,null,null,"",null,null,null,null,"Building Services",104000,null,null,null,null,104000,null,"104000 - Building Services"]
[null,null,null,null,null,6000,"Other Groups",6040,6045,null,null,null,"",null,null,null,null,"Building Services - Carpentry",104000,104001,null,null,null,104001,null,"104001 - Building Services - Carpentry"]
[null,null,null,null,null,6000,"Miscellaneous - EDU",6090,null,null,null,null,"",null,null,null,null,"Building Services - Construction Management",104000,104002,null,null,null,104002,null,"104002 - Building Services - Construction Management"]
[null,null,null,null,null,6500,"Audiovisual",6510,null,null,null,null,{"$f":"IF(OR(L66=0,L66=\"\"),\"\",PROPER(_xlfn.XLOOKUP(L66,G:G,H:H)&\"-\"&L66))","v":""},null,null,null,null,"Building Services - Custodial",104000,104003,null,null,null,104003,null,"104003 - Building Services - Custodial"]
[null,null,null,null,null,6500,"Audiovisual - Equipment & Supplies",6510,6511,null,null,null,"",null,null,null,null,"Building Services - Demolition",104000,104004,null,null,null,104004,null,"104004 - Building Services - Demolition"]
[null,null,null,null,null,6500,"Audiovisual - Repairs/Maintenance",6510,6512,null,null,null,"",null,null,null,null,"Building Services - Doors",104000,104005,null,null,null,104005,null,"104005 - Building Services - Doors"]
[null,null,null,null,null,6500,"Decorating/Flowers",6520,null,null,null,null,"",null,null,null,null,"Building Services - Electrical",104000,104006,null,null,null,104006,null,"104006 - Building Services - Electrical"]
[null,null,null,null,null,6500,"Furniture",6530,null,null,null,null,"",null,null,null,null,"Building Services - Energy Control Systems",104000,104007,null,null,null,104007,null,"104007 - Building Services - Energy Control Systems"]
[null,null,null,null,null,6500,"Music",6550,null,null,null,null,"",null,null,null,null,"Building Services - Fire/Water Damage",104000,104008,null,null,null,104008,null,"104008 - Building Services - Fire/Water Damage"]
[null,null,null,null,null,6500,"Mus - Equipment & Supplies",6550,6551,null,null,null,"",null,null,null,null,"Building Services - Glass/Glazing",104000,104009,null,null,null,104009,null,"104009 - Building Services - Glass/Glazing"]
[null,null,null,null,null,6500,"Mus - Repairs/Maintenance",6550,6552,null,null,null,{"$f":"IF(L73=\"\",\"\",PROPER(_xlfn.XLOOKUP(L73,G:G,H:H)&\"-\"&L73))","v":""},null,null,null,null,"Building Services - HVAC",104000,104010,null,null,null,104010,null,"104010 - Building Services - HVAC"]
[null,null,null,null,null,6500,"Musicians",6550,6553,null,null,null,"",null,null,null,null,"Building Services - Locksmith",104000,104011,null,null,null,104011,null,"104011 - Building Services - Locksmith"]
[null,null,null,null,null,6500,"Mus - Miscellaneous",6550,6554,null,null,null,"",null,null,null,null,"Building Services - Masonry/Concrete/Stucco",104000,104012,null,null,null,104012,null,"104012 - Building Services - Masonry/Concrete/Stucco"]
[null,null,null,null,null,6500,"Programs",6560,null,null,null,null,"",null,null,null,null,"Building Services - Other",104000,104013,null,null,null,104013,null,"104013 - Building Services - Other"]
[null,null,null,null,null,6500,"Baptism",6560,6561,null,null,null,"",null,null,null,null,"Building Services - Other Construction",104000,104014,null,null,null,104014,null,"104014 - Building Services - Other Construction"]
[null,null,null,null,null,6500,"Lord's Supper",6560,6562,null,null,null,"",null,null,null,null,"Building Services - Other Maintenance",104000,104025,null,null,null,104025,null,"104025 - Building Services - Other Maintenance"]
[null,null,null,null,null,6500,"Speakers",6560,6563,null,null,null,"",null,null,null,null,"Building Services - Painting/Caulking",104000,104015,null,null,null,104015,null,"104015 - Building Services - Painting/Caulking"]
[null,null,null,null,null,6500,"Miscellaneous - Worship",6590,null,null,null,null,"",null,null,null,null,"Building Services - Paving & Resurfacing",104000,104016,null,null,null,104016,null,"104016 - Building Services - Paving & Resurfacing"]
[null,null,null,null,null,7000,"Activities",7010,null,null,null,null,"",null,null,null,null,"Building Services - Pest Control",104000,104017,null,null,null,104017,null,"104017 - Building Services - Pest Control"]
[null,null,null,null,null,7000,"Equipment & Supplies",7020,null,null,null,null,"",null,null,null,null,"Building Services - Plumbing",104000,104018,null,null,null,104018,null,"104018 - Building Services - Plumbing"]
[null,null,null,null,null,7000,"Scholarship Fund",7030,null,null,null,null,"",null,null,null,null,"Building Services - Roofs, Gutters",104000,104019,null,null,null,104019,null,"104019 - Building Services - Roofs, Gutters"]
[null,null,null,null,null,7000,"Miscellaneous - Youth",7090,null,null,null,null,"",null,null,null,null,"Building Services - Sidewalks, Curbs",104000,104020,null,null,null,104020,null,"104020 - Building Services - Sidewalks, Curbs"]
[null,null,null,null,null,7500,"Miscellaneous - VBS",7590,null,null,null,null,"",null,null,null,null,"Building Services - Site Preparation",104000,104021,null,null,null,104021,null,"104021 - Building Services - Site Preparation"]
[null,null,null,null,null,8000,"Miscellaneous - SC",8090,null,null,null,null,"",null,null,null,null,"Building Services - Trash Removal",104000,104022,null,null,null,104022,null,"104022 - Building Services - Trash Removal"]
[null,null,null,null,null,null,null,null,null,null,null,null,"",null,null,null,null,"Building Services - Walls and Ceilings",104000,104023,null,null,null,104023,null,"104023 - Building Services - Walls and Ceilings"]
[null,null,null,null,null,null,null,null,null,null,null,null,"",null,null,null,null,"Building Services - Windows",104000,104024,null,null,null,104024,null,"104024 - Building Services - Windows"]
[null,null,null,null,null,null,null,null,null,null,null,null,null,null,null,null,null,"Chemicals",105000,null,null,null,null,105000,null,"105000 - Chemicals"]
[null,null,null,null,null,null,null,null,null,null,null,null,null,null,null,null,null,"Chemicals - Elements & Gases",105000,105010,null,null,null,105010,null,"105010 - Chemicals - Elements & Gases"]
[null,null,null,null,null,null,null,null,null,null,null,null,null,null,null,null,null,"Chemicals - Enzymes",105000,105020,null,null,null,105020,null,"105020 - Chemicals - Enzymes"]
[null,null,null,null,null,null,null,null,null,null,null,null,null,null,null,null,null,"Chemicals - Radioactive Isotopes",105000,105030,null,null,null,105030,null,"105030 - Chemicals - Radioactive Isotopes"]
[null,null,null,null,null,null,null,null,null,null,null,null,null,null,null,null,null,"Chemicals - Solvents",105000,105040,null,null,null,105040,null,"105040 - Chemicals - Solvents"]
[null,null,null,null,null,null,null,null,null,null,null,null,null,null,null,null,null,"Chemicals - Waste Removal",105000,105050,null,null,null,105050,null,"105050 - Chemicals - Waste Removal"]
[null,null,null,null,null,null,null,null,null,null,null,null,null,null,null,null,null,"Contracts",210000,null,null,null,null,210000,null,"210000 - Contracts"]
[null,null,null,null,null,null,null,null,null,null,null,null,null,null,null,null,null,"Contracts - Insurance",210000,210020,null,null,null,210020,null,"210020 - Contracts - Insurance"]
[null,null,null,null,null,null,null,null,null,null,null,null,null,null,null,null,null,"Contracts - Landscaping Services",210000,210030,null,null,null,210030,null,"210030 - Contracts - Landscaping Services"]
[null,null,null,null,null,null,null,null,null,null,null,null,null,null,null,null,null,"Contracts - Online Services",210000,210040,null,null,null,210040,null,"210040 - Contracts - Online Services"]
[null,null,null,null,null,null,null,null,null,null,null,null,null,null,null,null,null,"Contracts - Property Insurance",210000,210020,210021,null,null,210021,null,"210021 - Contracts - Property Insurance"]
[null,null,null,null,null,null,null,null,null,null,null,null,null,null,null,null,null,"Contracts - Security",210000,210050,null,null,null,210050,null,"210050 - Contracts - Security"]
[null,null,null,null,null,null,null,null,null,null,null,null,null,null,null,null,null,"Contracts - Vehicle Insurance",210000,210020,210022,null,null,210022,null,"210022 - Contracts - Vehicle Insurance"]
[null,null,null,null,null,null,null,null,null,null,null,null,null,null,null,null,null,"Fees -  Other Than Financial",215500,null,null,null,null,215500,null,"215500 - Fees -  Other Than Financial"]
[null,null,null,null,null,null,null,null,null,null,null,null,null,null,null,null,null,"Fees - License",215500,215510,null,null,null,215510,null,"215510 - Fees - License"]
[null,null,null,null,null,null,null,null,null,null,null,null,null,null,null,null,null,"Fees - Registration",215500,215540,null,null,null,215540,null,"215540 - Fees - Registration"]
[null,null,null,null,null,null,null,null,null,null,null,null,null,null,null,null,null,"Fees - Service",215500,215550,null,null,null,215550,null,"215550 - Fees - Service"]
[null,null,null,null,null,null,null,null,null,null,null,null,null,null,null,null,null,"Financial Services",106000,null,null,null,null,106000,null,"106000 - Financial Services"]
[null,null,null,null,null,null,null,null,null,null,null,null,null,null,null,null,null,"Financial Services - Bond Trustee",106000,106010,null,null,null,106010,null,"106010 - Financial Services - Bond Trustee"]
[null,null,null,null,null,null,null,null,null,null,null,null,null,null,null,null,null,"Financial Services - Investment Trustee",106000,106020,null,null,null,106020,null,"106020 - Financial Services - Investment Trustee"]
[null,null,null,null,null,null,null,null,null,null,null,null,null,null,null,null,null,"Financial Services - Legal Fees",106000,106030,null,null,null,106030,null,"106030 - Financial Services - Legal Fees"]
[null,null,null,null,null,null,null,null,null,null,null,null,null,null,null,null,null,"Financial Services - Other",106000,106040,null,null,null,106040,null,"106040 - Financial Services - Other"]
[null,null,null,null,null,null,null,null,null,null,null,null,null,null,null,null,null,"Financial Services - Other Bank Fees",106000,106050,null,null,null,106050,null,"106050 - Financial Services - Other Bank Fees"]
[null,null,null,null,null,null,null,null,null,null,null,null,null,null,null,null,null,"Food Service",107000,null,null,null,null,107000,null,"107000 - Food Service"]
[null,null,null,null,null,null,null,null,null,null,null,null,null,null,null,null,null,"Food Service - Cookware",107000,107008,null,null,null,107008,null,"107008 - Food Service - Cookware"]
[null,null,null,null,null,null,null,null,null,null,null,null,null,null,null,null,null,"Food Service - Dinnerware",107000,107007,null,null,null,107007,null,"107007 - Food Service - Dinnerware"]
[null,null,null,null,null,null,null,null,null,null,null,null,null,null,null,null,null,"Food Service - Food & Beverages",107000,107009,null,null,null,107009,null,"107009 - Food Service - Food & Beverages"]
[null,null,null,null,null,null,null,null,null,null,null,null,null,null,null,null,null,"Food Service - Freezers",107000,107001,null,null,null,107001,null,"107001 - Food Service - Freezers"]
[null,null,null,null,null,null,null,null,null,null,null,null,null,null,null,null,null,"Food Service - Linens",107000,107006,null,null,null,107006,null,"107006 - Food Service - Linens"]
[null,null,null,null,null,null,null,null,null,null,null,null,null,null,null,null,null,"Food Service - Other Kitchen Equipment",107000,107004,null,null,null,{"$f":"IF(U118<>\"\",U118,IF(T118<>\"\",T118,S118))","v":107004},null,{"$f":"IF(U118<>\"\",U118&\" - \"&_xlfn.XLOOKUP(U118,U:U,R:R),IF(T118<>\"\",T118&\" - \"&_xlfn.XLOOKUP(T118,T:T,R:R),IF(S118<>\"\",S118&\" - \"&_xlfn.XLOOKUP(S118,S:S,R:R),\"\")))","v":"107004 - Food Service - Other Kitchen Equipment"}]
[null,null,null,null,null,null,null,null,null,null,null,null,null,null,null,null,null,"Food Service - Other Supplies",107000,107010,null,null,null,107010,null,"107010 - Food Service - Other Supplies"]
[null,null,null,null,null,null,null,null,null,null,null,null,null,null,null,null,null,"Food Service - Ovens",107000,107002,null,null,null,107002,null,"107002 - Food Service - Ovens"]
[null,null,null,null,null,null,null,null,null,null,null,null,null,null,null,null,null,"Food Service - Refrigerators",107000,107003,null,null,null,107003,null,"107003 - Food Service - Refrigerators"]
[null,null,null,null,null,null,null,null,null,null,null,null,null,null,null,null,null,"Food Service - Repair",107000,107005,null,null,null,107005,null,"107005 - Food Service - Repair"]
[null,null,null,null,null,null,null,null,null,null,null,null,null,null,null,null,null,"Furniture",108000,null,null,null,null,108000,null,"108000 - Furniture"]
[null,null,null,null,null,null,null,null,null,null,null,null,null,null,null,null,null,"Furniture - Accessories",108000,108006,null,null,null,108006,null,"108006 - Furniture - Accessories"]
[null,null,null,null,null,null,null,null,null,null,null,null,null,null,null,null,null,"Furniture - Classroom",108000,108001,null,null,null,108001,null,"108001 - Furniture - Classroom"]
[null,null,null,null,null,null,null,null,null,null,null,null,null,null,null,null,null,"Furniture - Computer",108000,108002,null,null,null,108002,null,"108002 - Furniture - Computer"]
[null,null,null,null,null,null,null,null,null,null,null,null,null,null,null,null,null,"Furniture - Dining",108000,108003,null,null,null,108003,null,"108003 - Furniture - Dining"]
[null,null,null,null,null,null,null,null,null,null,null,null,null,null,null,null,null,"Furniture - Installation & Delivery",108000,108009,null,null,null,108009,null,"108009 - Furniture - Installation & Delivery"]
[null,null,null,null,null,null,null,null,null,null,null,null,null,null,null,null,null,"Furniture - Office",108000,108004,null,null,null,108004,null,"108004 - Furniture - Office"]
[null,null,null,null,null,null,null,null,null,null,null,null,null,null,null,null,null,"Furniture - Rental",108000,108007,null,null,null,108007,null,"108007 - Furniture - Rental"]
[null,null,null,null,null,null,null,null,null,null,null,null,null,null,null,null,null,"Furniture - Repairs/Reupholster/Refinish",108000,108008,null,null,null,108008,null,"108008 - Furniture - Repairs/Reupholster/Refinish"]
[null,null,null,null,null,null,null,null,null,null,null,null,null,null,null,null,null,"Furniture - Worship",108000,108005,null,null,null,108005,null,"108005 - Furniture - Worship"]
[null,null,null,null,null,null,null,null,null,null,null,null,null,null,null,null,null,"Information Technology",109000,null,null,null,null,109000,null,"109000 - Information Technology"]
[null,null,null,null,null,null,null,null,null,null,null,null,null,null,null,null,null,"IT - Accessories",109000,109008,null,null,null,109008,null,"109008 - IT - Accessories"]
[null,null,null,null,null,null,null,null,null,null,null,null,null,null,null,null,null,"IT - Broadcasting",109000,109001,null,null,null,109001,null,"109001 - IT - Broadcasting"]
[null,null,null,null,null,null,null,null,null,null,null,null,null,null,null,null,null,"IT - Broadcasting Equipment",109000,109002,null,null,null,109002,null,"109002 - IT - Broadcasting Equipment"]
[null,null,null,null,null,null,null,null,null,null,null,null,null,null,null,null,null,"IT - Cables",109000,109009,null,null,null,109009,null,"109009 - IT - Cables"]
[null,null,null,null,null,null,null,null,null,null,null,null,null,null,null,null,null,"IT - Computers (Mac desktop)",109000,109003,null,null,null,109003,null,"109003 - IT - Computers (Mac desktop)"]
[null,null,null,null,null,null,null,null,null,null,null,null,null,null,null,null,null,"IT - Computers (Mac laptop)",109000,109004,null,null,null,109004,null,"109004 - IT - Computers (Mac laptop)"]
[null,null,null,null,null,null,null,null,null,null,null,null,null,null,null,null,null,"IT - Computers (PC desktop)",109000,109005,null,null,null,109005,null,"109005 - IT - Computers (PC desktop)"]
[null,null,null,null,null,null,null,null,null,null,null,null,null,null,null,null,null,"IT - Computers (PC laptop)",109000,109006,null,null,null,109006,null,"109006 - IT - Computers (PC laptop)"]
[null,null,null,null,null,null,null,null,null,null,null,null,null,null,null,null,null,"IT - Data",109000,109015,null,null,null,109015,null,"109015 - IT - Data"]
[null,null,null,null,null,null,null,null,null,null,null,null,null,null,null,null,null,"IT - Data Equipment",109000,109016,null,null,null,109016,null,"109016 - IT - Data Equipment"]
[null,null,null,null,null,null,null,null,null,null,null,null,null,null,null,null,null,"IT - Other Network Service Equipment",109000,109014,null,null,null,109014,null,"109014 - IT - Other Network Service Equipment"]
[null,null,null,null,null,null,null,null,null,null,null,null,null,null,null,null,null,"IT - Other Peripherals",109000,109011,null,null,null,109011,null,"109011 - IT - Other Peripherals"]
[null,null,null,null,null,null,null,null,null,null,null,null,null,null,null,null,null,"IT - Printers",109000,109010,null,null,null,109010,null,"109010 - IT - Printers"]
[null,null,null,null,null,null,null,null,null,null,null,null,null,null,null,null,null,"IT - Routers",109000,109012,null,null,null,109012,null,"109012 - IT - Routers"]
[null,null,null,null,null,null,null,null,null,null,null,null,null,null,null,null,null,"IT - Servers",109000,109013,null,null,null,109013,null,"109013 - IT - Servers"]
[null,null,null,null,null,null,null,null,null,null,null,null,null,null,null,null,null,"IT - Software",109000,109019,null,null,null,109019,null,"109019 - IT - Software"]
[null,null,null,null,null,null,null,null,null,null,null,null,null,null,null,null,null,"IT - Tablets",109000,109007,null,null,null,109007,null,"109007 - IT - Tablets"]
[null,null,null,null,null,null,null,null,null,null,null,null,null,null,null,null,null,"IT - Voice",109000,109017,null,null,null,109017,null,"109017 - IT - Voice"]
[null,null,null,null,null,null,null,null,null,null,null,null,null,null,null,null,null,"IT - Voice Equipment",109000,109018,null,null,null,109018,null,"109018 - IT - Voice Equipment"]
[null,null,null,null,null,null,null,null,null,null,null,null,null,null,null,null,null,"Landscaping",110000,null,null,null,null,110000,null,"110000 - Landscaping"]
[null,null,null,null,null,null,null,null,null,null,null,null,null,null,null,null,null,"Landscaping - Batteries, Battery Chargers",110000,110005,null,null,null,110005,null,"110005 - Landscaping - Batteries, Battery Chargers"]
[null,null,null,null,null,null,null,null,null,null,null,null,null,null,null,null,null,"Landscaping - Diesel",110000,110010,null,null,null,110010,null,"110010 - Landscaping - Diesel"]
[null,null,null,null,null,null,null,null,null,null,null,null,null,null,null,null,null,"Landscaping - Fertilizer/Herbicide",110000,110040,null,null,null,110040,null,"110040 - Landscaping - Fertilizer/Herbicide"]
[null,null,null,null,null,null,null,null,null,null,null,null,null,null,null,null,null,"Landscaping - Gasoline",110000,110015,null,null,null,110015,null,"110015 - Landscaping - Gasoline"]
[null,null,null,null,null,null,null,null,null,null,null,null,null,null,null,null,null,"Landscaping - Lawnmowers",110000,110020,null,null,null,110020,null,"110020 - Landscaping - Lawnmowers"]
[null,null,null,null,null,null,null,null,null,null,null,null,null,null,null,null,null,"Landscaping - Other Equipment",110000,110025,null,null,null,110025,null,"110025 - Landscaping - Other Equipment"]
[null,null,null,null,null,null,null,null,null,null,null,null,null,null,null,null,null,"Landscaping - Other Supplies",110000,110050,null,null,null,110050,null,"110050 - Landscaping - Other Supplies"]
[null,null,null,null,null,null,null,null,null,null,null,null,null,null,null,null,null,"Landscaping - Pest Control Products",110000,110045,null,null,null,110045,null,"110045 - Landscaping - Pest Control Products"]
[null,null,null,null,null,null,null,null,null,null,null,null,null,null,null,null,null,"Landscaping - Plants, Annuals",110000,110030,null,null,null,110030,null,"110030 - Landscaping - Plants, Annuals"]
[null,null,null,null,null,null,null,null,null,null,null,null,null,null,null,null,null,"Landscaping - Plants, Trees & Perennials",110000,110035,null,null,null,110035,null,"110035 - Landscaping - Plants, Trees & Perennials"]
[null,null,null,null,null,null,null,null,null,null,null,null,null,null,null,null,null,"Landscaping - Repairs/Maintenance",110000,110055,null,null,null,110055,null,"110055 - Landscaping - Repairs/Maintenance"]
[null,null,null,null,null,null,null,null,null,null,null,null,null,null,null,null,null,"Landscaping - Services",110000,110060,null,null,null,110060,null,"110060 - Landscaping - Services"]
[null,null,null,null,null,null,null,null,null,null,null,null,null,null,null,null,null,"Miscellaneous Goods",111000,null,null,null,null,111000,null,"111000 - Miscellaneous Goods"]
[null,null,null,null,null,null,null,null,null,null,null,null,null,null,null,null,null,"Miscellaneous Goods - Advertising Fees",111000,111001,null,null,null,111001,null,"111001 - Miscellaneous Goods - Advertising Fees"]
[null,null,null,null,null,null,null,null,null,null,null,null,null,null,null,null,null,"Miscellaneous Goods - Banquet/Event Space Rental",111000,111002,null,null,null,111002,null,"111002 - Miscellaneous Goods - Banquet/Event Space Rental"]
[null,null,null,null,null,null,null,null,null,null,null,null,null,null,null,null,null,"Miscellaneous Goods - Document Shredding",111000,111003,null,null,null,111003,null,"111003 - Miscellaneous Goods - Document Shredding"]
[null,null,null,null,null,null,null,null,null,null,null,null,null,null,null,null,null,"Miscellaneous Goods - Employee Benefits",111000,111004,null,null,null,111004,null,"111004 - Miscellaneous Goods - Employee Benefits"]
[null,null,null,null,null,null,null,null,null,null,null,null,null,null,null,null,null,"Miscellaneous Goods - Floral Arrangements",111000,111005,null,null,null,111005,null,"111005 - Miscellaneous Goods - Floral Arrangements"]
[null,null,null,null,null,null,null,null,null,null,null,null,null,null,null,null,null,"Miscellaneous Goods - Insurance Premiums",111000,111014,null,null,null,111014,null,"111014 - Miscellaneous Goods - Insurance Premiums"]
[null,null,null,null,null,null,null,null,null,null,null,null,null,null,null,null,null,"Miscellaneous Goods - Membership Dues",111000,111006,null,null,null,111006,null,"111006 - Miscellaneous Goods - Membership Dues"]
[null,null,null,null,null,null,null,null,null,null,null,null,null,null,null,null,null,"Miscellaneous Goods - Miscellaneous",111000,111011,null,null,null,111011,null,"111011 - Miscellaneous Goods - Miscellaneous"]
[null,null,null,null,null,null,null,null,null,null,null,null,null,null,null,null,null,"Miscellaneous Goods - Operating Expenses",111000,111015,null,null,null,111015,null,"111015 - Miscellaneous Goods - Operating Expenses"]
[null,null,null,null,null,null,null,null,null,null,null,null,null,null,null,null,null,"Miscellaneous Goods - Petty Cash",111000,111007,null,null,null,111007,null,"111007 - Miscellaneous Goods - Petty Cash"]
[null,null,null,null,null,null,null,null,null,null,null,null,null,null,null,null,null,"Miscellaneous Goods - Postage",111000,111008,null,null,null,111008,null,"111008 - Miscellaneous Goods - Postage"]
[null,null,null,null,null,null,null,null,null,null,null,null,null,null,null,null,null,"Miscellaneous Goods - Prizes/Awards",111000,111009,null,null,null,111009,null,"111009 - Miscellaneous Goods - Prizes/Awards"]
[null,null,null,null,null,null,null,null,null,null,null,null,null,null,null,null,null,"Miscellaneous Goods - Salary",111000,111010,null,null,null,111010,null,"111010 - Miscellaneous Goods - Salary"]
[null,null,null,null,null,null,null,null,null,null,null,null,null,null,null,null,null,"Miscellaneous Goods - Sponsorship of Event",111000,111012,null,null,null,111012,null,"111012 - Miscellaneous Goods - Sponsorship of Event"]
[null,null,null,null,null,null,null,null,null,null,null,null,null,null,null,null,null,"Miscellaneous Goods - Subscription Fees",111000,111013,null,null,null,111013,null,"111013 - Miscellaneous Goods - Subscription Fees"]
[null,null,null,null,null,null,null,null,null,null,null,null,null,null,null,null,null,"Office Machines",112000,null,null,null,null,{"$f":"IF(U182<>\"\",U182,IF(T182<>\"\",T182,S182))","v":112000},null,{"$f":"IF(U182<>\"\",U182&\" - \"&_xlfn.XLOOKUP(U182,U:U,R:R),IF(T182<>\"\",T182&\" - \"&_xlfn.XLOOKUP(T182,T:T,R:R),IF(S182<>\"\",S182&\" - \"&_xlfn.XLOOKUP(S182,S:S,R:R),\"\")))","v":"112000 - Office Machines"}]
[null,null,null,null,null,null,null,null,null,null,null,null,null,null,null,null,null,"Office Machines - Calculators",112000,112005,null,null,null,112005,null,"112005 - Office Machines - Calculators"]
[null,null,null,null,null,null,null,null,null,null,null,null,null,null,null,null,null,"Office Machines - Copier Acquisition",112000,112010,null,null,null,112010,null,"112010 - Office Machines - Copier Acquisition"]
[null,null,null,null,null,null,null,null,null,null,null,null,null,null,null,null,null,"Office Machines - Copier Lease",112000,112015,null,null,null,112015,null,"112015 - Office Machines - Copier Lease"]
[null,null,null,null,null,null,null,null,null,null,null,null,null,null,null,null,null,"Office Machines - Fax",112000,112020,null,null,null,112020,null,"112020 - Office Machines - Fax"]
[null,null,null,null,null,null,null,null,null,null,null,null,null,null,null,null,null,"Office Machines - Postage Meters",112000,112025,null,null,null,112025,null,"112025 - Office Machines - Postage Meters"]
[null,null,null,null,null,null,null,null,null,null,null,null,null,null,null,null,null,"Office Machines - Repair/Maintenance Services",112000,112040,null,null,null,112040,null,"112040 - Office Machines - Repair/Maintenance Services"]
[null,null,null,null,null,null,null,null,null,null,null,null,null,null,null,null,null,"Office Machines - Scanners",112000,112030,null,null,null,112030,null,"112030 - Office Machines - Scanners"]
[null,null,null,null,null,null,null,null,null,null,null,null,null,null,null,null,null,"Office Machines - Typewriters",112000,112035,null,null,null,112035,null,"112035 - Office Machines - Typewriters"]
[null,null,null,null,null,null,null,null,null,null,null,null,null,null,null,null,null,"Outreach",212000,null,null,null,null,212000,null,"212000 - Outreach"]
[null,null,null,null,null,null,null,null,null,null,null,null,null,null,null,null,null,"Outreach - Activities",212000,212010,null,null,null,212010,null,"212010 - Outreach - Activities"]
[null,null,null,null,null,null,null,null,null,null,null,null,null,null,null,null,null,"Outreach - Donations/Gifts",212000,212020,null,null,null,212020,null,"212020 - Outreach - Donations/Gifts"]
[null,null,null,null,null,null,null,null,null,null,null,null,null,null,null,null,null,"Outreach - Marketing",212000,212030,null,null,null,212030,null,"212030 - Outreach - Marketing"]
[null,null,null,null,null,null,null,null,null,null,null,null,null,null,null,null,null,"Outreach - Miscellaneous",212000,212090,null,null,null,212090,null,"212090 - Outreach - Miscellaneous"]
[null,null,null,null,null,null,null,null,null,null,null,null,null,null,null,null,null,"Outreach - Missions",212000,212040,null,null,null,212040,null,"212040 - Outreach - Missions"]
[null,null,null,null,null,null,null,null,null,null,null,null,null,null,null,null,null,"Outreach - Missions - Benevolence",212000,212040,212041,null,null,212041,null,"212041 - Outreach - Missions - Benevolence"]
[null,null,null,null,null,null,null,null,null,null,null,null,null,null,null,null,null,"Outreach - Missions - Black Creek",212000,212040,212042,null,null,212042,null,"212042 - Outreach - Missions - Black Creek"]
[null,null,null,null,null,null,null,null,null,null,null,null,null,null,null,null,null,"Outreach - Missions - Florida Baptist Conf.",212000,212040,212043,null,null,212043,null,"212043 - Outreach - Missions - Florida Baptist Conf."]
[null,null,null,null,null,null,null,null,null,null,null,null,null,null,null,null,null,"Outreach - Missions - Grief Share",212000,212040,212044,null,null,212044,null,"212044 - Outreach - Missions - Grief Share"]
[null,null,null,null,null,null,null,null,null,null,null,null,null,null,null,null,null,"Outreach - Missions - Kathy Gould",212000,212040,212045,null,null,212045,null,"212045 - Outreach - Missions - Kathy Gould"]
[null,null,null,null,null,null,null,null,null,null,null,null,null,null,null,null,null,"Outreach - Missions - SOutreachh. Baptist Assoc.",212000,212040,212046,null,null,212046,null,"212046 - Outreach - Missions - SOutreachh. Baptist Assoc."]
[null,null,null,null,null,null,null,null,null,null,null,null,null,null,null,null,null,"Paper",113000,null,null,null,null,113000,null,"113000 - Paper"]
[null,null,null,null,null,null,null,null,null,null,null,null,null,null,null,null,null,"Paper - Construction/Cardstock/Posterboard",113000,113045,null,null,null,113045,null,"113045 - Paper - Construction/Cardstock/Posterboard"]
[null,null,null,null,null,null,null,null,null,null,null,null,null,null,null,null,null,"Paper - Office, Colored",113000,113040,null,null,null,113040,null,"113040 - Paper - Office, Colored"]
[null,null,null,null,null,null,null,null,null,null,null,null,null,null,null,null,null,"Paper - Office, White",113000,113055,null,null,null,113055,null,"113055 - Paper - Office, White"]
[null,null,null,null,null,null,null,null,null,null,null,null,null,null,null,null,null,"Paper - Personal, Other",113000,113010,null,null,null,113010,null,"113010 - Paper - Personal, Other"]
[null,null,null,null,null,null,null,null,null,null,null,null,null,null,null,null,null,"Paper - Personal, Paper Towels",113000,113020,null,null,null,113020,null,"113020 - Paper - Personal, Paper Towels"]
[null,null,null,null,null,null,null,null,null,null,null,null,null,null,null,null,null,"Paper - Personal, Toilet Paper",113000,113030,null,null,null,113030,null,"113030 - Paper - Personal, Toilet Paper"]
[null,null,null,null,null,null,null,null,null,null,null,null,null,null,null,null,null,"Paper - Tablet/Writing/Stationary",113000,113050,null,null,null,113050,null,"113050 - Paper - Tablet/Writing/Stationary"]
[null,null,null,null,null,null,null,null,null,null,null,null,null,null,null,null,null,"Paper - Wrapping/Tissue/Gift Bag",113000,113060,null,null,null,113060,null,"113060 - Paper - Wrapping/Tissue/Gift Bag"]
[null,null,null,null,null,null,null,null,null,null,null,null,null,null,null,null,null,"Payroll",212500,null,null,null,null,212500,null,"212500 - Payroll"]
[null,null,null,null,null,null,null,null,null,null,null,null,null,null,null,null,null,"Payroll - Benefits",212500,212510,null,null,null,212510,null,"212510 - Payroll - Benefits"]
[null,null,null,null,null,null,null,null,null,null,null,null,null,null,null,null,null,"Payroll - D&W - Federal Taxes",212500,212520,212521,null,null,212521,null,"212521 - Payroll - D&W - Federal Taxes"]
[null,null,null,null,null,null,null,null,null,null,null,null,null,null,null,null,null,"Payroll - D&W - FUTA",212500,212520,212522,null,null,212522,null,"212522 - Payroll - D&W - FUTA"]
[null,null,null,null,null,null,null,null,null,null,null,null,null,null,null,null,null,"Payroll - D&W - Medicare",212500,212520,212523,null,null,212523,null,"212523 - Payroll - D&W - Medicare"]
[null,null,null,null,null,null,null,null,null,null,null,null,null,null,null,null,null,"Payroll - D&W - Social Security",212500,212520,212524,null,null,212524,null,"212524 - Payroll - D&W - Social Security"]
[null,null,null,null,null,null,null,null,null,null,null,null,null,null,null,null,null,"Payroll - Deductions and Withholdings",212500,212520,null,null,null,212520,null,"212520 - Payroll - D&W - Federal Taxes"]
[null,null,null,null,null,null,null,null,null,null,null,null,null,null,null,null,null,"Payroll - Expenses - Other",212500,212530,null,null,null,212530,null,"212530 - Payroll - Expenses - Other"]
[null,null,null,null,null,null,null,null,null,null,null,null,null,null,null,null,null,"Payroll - Housing",212500,212550,null,null,null,212550,null,"212550 - Payroll - Housing"]
[null,null,null,null,null,null,null,null,null,null,null,null,null,null,null,null,null,"Payroll - Salaries",212500,212540,null,null,null,212540,null,"212540 - Payroll - Salaries"]
[null,null,null,null,null,null,null,null,null,null,null,null,null,null,null,null,null,"Payroll - Salaries - Pastor",212500,212540,212541,null,null,212541,null,"212541 - Payroll - Salaries - Pastor"]
[null,null,null,null,null,null,null,null,null,null,null,null,null,null,null,null,null,"Payroll - Salaries - Youth Director",212500,212540,212542,null,null,212542,null,"212542 - Payroll - Salaries - Youth Director"]
[null,null,null,null,null,null,null,null,null,null,null,null,null,null,null,null,null,"Photographic Equipment & Supplies",114000,null,null,null,null,114000,null,"114000 - Photographic Equipment & Supplies"]
[null,null,null,null,null,null,null,null,null,null,null,null,null,null,null,null,null,"Photography - Cameras (Still & Video)",114000,114010,null,null,null,114010,null,"114010 - Photography - Cameras (Still & Video)"]
[null,null,null,null,null,null,null,null,null,null,null,null,null,null,null,null,null,"Photography - Other Equipment & Supplies",114000,114030,null,null,null,114030,null,"114030 - Photography - Other Equipment & Supplies"]
[null,null,null,null,null,null,null,null,null,null,null,null,null,null,null,null,null,"Photography - Repairs/Maintenance Services",114000,114020,null,null,null,114020,null,"114020 - Photography - Repairs/Maintenance Services"]
[null,null,null,null,null,null,null,null,null,null,null,null,null,null,null,null,null,"Power Generators",115000,null,null,null,null,115000,null,"115000 - Power Generators"]
[null,null,null,null,null,null,null,null,null,null,null,null,null,null,null,null,null,"Power Generators - Acquisition",115000,115010,null,null,null,115010,null,"115010 - Power Generators - Acquisition"]
[null,null,null,null,null,null,null,null,null,null,null,null,null,null,null,null,null,"Power Generators - Rental",115000,115020,null,null,null,115020,null,"115020 - Power Generators - Rental"]
[null,null,null,null,null,null,null,null,null,null,null,null,null,null,null,null,null,"Power Generators - Repairs/Maintenance Services",115000,115030,null,null,null,115030,null,"115030 - Power Generators - Repairs/Maintenance Services"]
[null,null,null,null,null,null,null,null,null,null,null,null,null,null,null,null,null,"Printed Materials",116000,null,null,null,null,116000,null,"116000 - Printed Materials"]
[null,null,null,null,null,null,null,null,null,null,null,null,null,null,null,null,null,"Printing - Banners",116000,116001,null,null,null,116001,null,"116001 - Printing - Banners"]
[null,null,null,null,null,null,null,null,null,null,null,null,null,null,null,null,null,"Printing - Booklet/Docket",116000,116002,null,null,null,116002,null,"116002 - Printing - Booklet/Docket"]
[null,null,null,null,null,null,null,null,null,null,null,null,null,null,null,null,null,"Printing - Books",116000,116003,null,null,null,116003,null,"116003 - Printing - Books"]
[null,null,null,null,null,null,null,null,null,null,null,null,null,null,null,null,null,"Printing - Brochure",116000,116004,null,null,null,116004,null,"116004 - Printing - Brochure"]
[null,null,null,null,null,null,null,null,null,null,null,null,null,null,null,null,null,"Printing - Envelopes",116000,116005,null,null,null,116005,null,"116005 - Printing - Envelopes"]
[null,null,null,null,null,null,null,null,null,null,null,null,null,null,null,null,null,"Printing - Forms",116000,116007,null,null,null,116007,null,"116007 - Printing - Forms"]
[null,null,null,null,null,null,null,null,null,null,null,null,null,null,null,null,null,"Printing - Magazine",116000,116008,null,null,null,116008,null,"116008 - Printing - Magazine"]
[null,null,null,null,null,null,null,null,null,null,null,null,null,null,null,null,null,"Printing - Mailing",116000,116006,null,null,null,116006,null,"116006 - Printing - Mailing"]
[null,null,null,null,null,null,null,null,null,null,null,null,null,null,null,null,null,"Printing - Newspaper",116000,116009,null,null,null,116009,null,"116009 - Printing - Newspaper"]
[null,null,null,null,null,null,null,null,null,null,null,null,null,null,null,null,null,"Printing - Posters",116000,116010,null,null,null,116010,null,"116010 - Printing - Posters"]
[null,null,null,null,null,null,null,null,null,null,null,null,null,null,null,null,null,"Printing - Reprints",116000,116011,null,null,null,116011,null,"116011 - Printing - Reprints"]
[null,null,null,null,null,null,null,null,null,null,null,null,null,null,null,null,null,"Security",117000,null,null,null,null,117000,null,"117000 - Security"]
[null,null,null,null,null,null,null,null,null,null,null,null,null,null,null,null,null,"Security - Consultants",117000,117050,null,null,null,117050,null,"117050 - Security - Consultants"]
[null,null,null,null,null,null,null,null,null,null,null,null,null,null,null,null,null,"Security - Fire Protection",117000,117010,null,null,null,{"$f":"IF(U246<>\"\",U246,IF(T246<>\"\",T246,S246))","v":117010},null,{"$f":"IF(U246<>\"\",U246&\" - \"&_xlfn.XLOOKUP(U246,U:U,R:R),IF(T246<>\"\",T246&\" - \"&_xlfn.XLOOKUP(T246,T:T,R:R),IF(S246<>\"\",S246&\" - \"&_xlfn.XLOOKUP(S246,S:S,R:R),\"\")))","v":"117010 - Security - Fire Protection"}]
[null,null,null,null,null,null,null,null,null,null,null,null,null,null,null,null,null,"Security - Locks, Access Control",117000,117020,null,null,null,117020,null,"117020 - Security - Locks, Access Control"]
[null,null,null,null,null,null,null,null,null,null,null,null,null,null,null,null,null,"Security - Radios/Communication Equipment",117000,117030,null,null,null,117030,null,"117030 - Security - Radios/Communication Equipment"]
[null,null,null,null,null,null,null,null,null,null,null,null,null,null,null,null,null,"Security - Services/Outside Contractors",117000,117060,null,null,null,117060,null,"117060 - Security - Services/Outside Contractors"]
[null,null,null,null,null,null,null,null,null,null,null,null,null,null,null,null,null,"Security - Surveillance Equipment",117000,117040,null,null,null,117040,null,"117040 - Security - Surveillance Equipment"]
[null,null,null,null,null,null,null,null,null,null,null,null,null,null,null,null,null,"Services  & Consultants",118000,null,null,null,null,118000,null,"118000 - Services  & Consultants"]
[null,null,null,null,null,null,null,null,null,null,null,null,null,null,null,null,null,"Services - Accountant (Audit Related)",118000,118001,null,null,null,118001,null,"118001 - Services - Accountant (Audit Related)"]
[null,null,null,null,null,null,null,null,null,null,null,null,null,null,null,null,null,"Services - Appraisal Services",118000,118002,null,null,null,118002,null,"118002 - Services - Appraisal Services"]
[null,null,null,null,null,null,null,null,null,null,null,null,null,null,null,null,null,"Services - Architect",118000,118003,null,null,null,118003,null,"118003 - Services - Architect"]
[null,null,null,null,null,null,null,null,null,null,null,null,null,null,null,null,null,"Services - Artist (All Media)",118000,118004,null,null,null,118004,null,"118004 - Services - Artist (All Media)"]
[null,null,null,null,null,null,null,null,null,null,null,null,null,null,null,null,null,"Services - Construction Project Management",118000,118005,null,null,null,118005,null,"118005 - Services - Construction Project Management"]
[null,null,null,null,null,null,null,null,null,null,null,null,null,null,null,null,null,"Services - Engineer Civil",118000,118006,null,null,null,118006,null,"118006 - Services - Engineer Civil"]
[null,null,null,null,null,null,null,null,null,null,null,null,null,null,null,null,null,"Services - Engineer Electrical",118000,118007,null,null,null,118007,null,"118007 - Services - Engineer Electrical"]
[null,null,null,null,null,null,null,null,null,null,null,null,null,null,null,null,null,"Services - Engineer Mechanical",118000,118008,null,null,null,118008,null,"118008 - Services - Engineer Mechanical"]
[null,null,null,null,null,null,null,null,null,null,null,null,null,null,null,null,null,"Services - Engineer Structural",118000,118009,null,null,null,118009,null,"118009 - Services - Engineer Structural"]
[null,null,null,null,null,null,null,null,null,null,null,null,null,null,null,null,null,"Services - Environmental Audit",118000,118010,null,null,null,118010,null,"118010 - Services - Environmental Audit"]
[null,null,null,null,null,null,null,null,null,null,null,null,null,null,null,null,null,"Services - Environmental Remediation",118000,118011,null,null,null,118011,null,"118011 - Services - Environmental Remediation"]
[null,null,null,null,null,null,null,null,null,null,null,null,null,null,null,null,null,"Services - Event Planner",118000,118012,null,null,null,118012,null,"118012 - Services - Event Planner"]
[null,null,null,null,null,null,null,null,null,null,null,null,null,null,null,null,null,"Services - Executive Search Firm",118000,118013,null,null,null,118013,null,"118013 - Services - Executive Search Firm"]
[null,null,null,null,null,null,null,null,null,null,null,null,null,null,null,null,null,"Services - Graphic/Web Designer",118000,118014,null,null,null,118014,null,"118014 - Services - Graphic/Web Designer"]
[null,null,null,null,null,null,null,null,null,null,null,null,null,null,null,null,null,"Services - Land Surveying",118000,118015,null,null,null,118015,null,"118015 - Services - Land Surveying"]
[null,null,null,null,null,null,null,null,null,null,null,null,null,null,null,null,null,"Services - Legal, Bookkeeping",118000,118016,null,null,null,118016,null,"118016 - Services - Legal, Bookkeeping"]
[null,null,null,null,null,null,null,null,null,null,null,null,null,null,null,null,null,"Services - Media Producer",118000,118018,null,null,null,118018,null,"118018 - Services - Media Producer"]
[null,null,null,null,null,null,null,null,null,null,null,null,null,null,null,null,null,"Services - Musician",118000,118019,null,null,null,118019,null,"118019 - Services - Musician"]
[null,null,null,null,null,null,null,null,null,null,null,null,null,null,null,null,null,"Services - Other",118000,118020,null,null,null,118020,null,"118020 - Services - Other"]
[null,null,null,null,null,null,null,null,null,null,null,null,null,null,null,null,null,"Services - Other Legal",118000,118017,null,null,null,118017,null,"118017 - Services - Other Legal"]
[null,null,null,null,null,null,null,null,null,null,null,null,null,null,null,null,null,"Services - Photographer/Videographer",118000,118021,null,null,null,118021,null,"118021 - Services - Photographer/Videographer"]
[null,null,null,null,null,null,null,null,null,null,null,null,null,null,null,null,null,"Services - Piano/Organ Tuner",118000,118022,null,null,null,118022,null,"118022 - Services - Piano/Organ Tuner"]
[null,null,null,null,null,null,null,null,null,null,null,null,null,null,null,null,null,"Services - Sign Language Translator",118000,118024,null,null,null,118024,null,"118024 - Services - Sign Language Translator"]
[null,null,null,null,null,null,null,null,null,null,null,null,null,null,null,null,null,"Services - Speaker",118000,118023,null,null,null,118023,null,"118023 - Services - Speaker"]
[null,null,null,null,null,null,null,null,null,null,null,null,null,null,null,null,null,"Services - Temporary Help",118000,118025,null,null,null,118025,null,"118025 - Services - Temporary Help"]
[null,null,null,null,null,null,null,null,null,null,null,null,null,null,null,null,null,"Shipping & Handling - All Charges",119000,null,null,null,null,119000,null,"119000 - Shipping & Handling - All Charges"]
[null,null,null,null,null,null,null,null,null,null,null,null,null,null,null,null,null,"Summer Camp",216000,null,null,null,null,216000,null,"216000 - Summer Camp"]
[null,null,null,null,null,null,null,null,null,null,null,null,null,null,null,null,null,"Summer Camp - Marketing",216000,216010,null,null,null,216010,null,"216010 - Summer Camp - Marketing"]
[null,null,null,null,null,null,null,null,null,null,null,null,null,null,null,null,null,"Summer Camp - Registration",216000,216020,null,null,null,216020,null,"216020 - Summer Camp - Registration"]
[null,null,null,null,null,null,null,null,null,null,null,null,null,null,null,null,null,"Summer Camp - Travel Expenses",216000,216030,null,null,null,216030,null,"216030 - Summer Camp - Travel Expenses"]
[null,null,null,null,null,null,null,null,null,null,null,null,null,null,null,null,null,"Supplies",120000,null,null,null,null,120000,null,"120000 - Supplies"]
[null,null,null,null,null,null,null,null,null,null,null,null,null,null,null,null,null,"Supplies - Black or White Boards",120000,120001,null,null,null,120001,null,"120001 - Supplies - Black or White Boards"]
[null,null,null,null,null,null,null,null,null,null,null,null,null,null,null,null,null,"Supplies - Classroom",120000,120002,null,null,null,120002,null,"120002 - Supplies - Classroom"]
[null,null,null,null,null,null,null,null,null,null,null,null,null,null,null,null,null,"Supplies - Copier Toner, Parts",120000,120003,null,null,null,120003,null,"120003 - Supplies - Copier Toner, Parts"]
[null,null,null,null,null,null,null,null,null,null,null,null,null,null,null,null,null,"Supplies - Curriculum",120000,120011,null,null,null,120011,null,"120011 - Supplies - Curriculum"]
[null,null,null,null,null,null,null,null,null,null,null,null,null,null,null,null,null,"Supplies - Drafting & Art",120000,120004,null,null,null,120004,null,"120004 - Supplies - Drafting & Art"]
[null,null,null,null,null,null,null,null,null,null,null,null,null,null,null,null,null,"Supplies - Library",120000,120005,null,null,null,120005,null,"120005 - Supplies - Library"]
[null,null,null,null,null,null,null,null,null,null,null,null,null,null,null,null,null,"Supplies - Musical Instruments",120000,120006,null,null,null,120006,null,"120006 - Supplies - Musical Instruments"]
[null,null,null,null,null,null,null,null,null,null,null,null,null,null,null,null,null,"Supplies - Office Miscellaneous",120000,120007,null,null,null,120007,null,"120007 - Supplies - Office Miscellaneous"]
[null,null,null,null,null,null,null,null,null,null,null,null,null,null,null,null,null,"Supplies - Scanners",120000,120008,null,null,null,120008,null,"120008 - Supplies - Scanners"]
[null,null,null,null,null,null,null,null,null,null,null,null,null,null,null,null,null,"Supplies - Sports Equipment",120000,120009,null,null,null,120009,null,"120009 - Supplies - Sports Equipment"]
[null,null,null,null,null,null,null,null,null,null,null,null,null,null,null,null,null,"Supplies - Theatrical Equipment & Supplies",120000,120010,null,null,null,120010,null,"120010 - Supplies - Theatrical Equipment & Supplies"]
[null,null,null,null,null,null,null,null,null,null,null,null,null,null,null,null,null,"Taxes and Governmental Fees",121000,null,null,null,null,121000,null,"121000 - Taxes and Governmental Fees"]
[null,null,null,null,null,null,null,null,null,null,null,null,null,null,null,null,null,"Taxes/Fees - Other",121000,121400,null,null,null,121400,null,"121400 - Taxes/Fees - Other"]
[null,null,null,null,null,null,null,null,null,null,null,null,null,null,null,null,null,"Taxes/Fees - Property Tax",121000,121100,null,null,null,121100,null,"121100 - Taxes/Fees - Property Tax"]
[null,null,null,null,null,null,null,null,null,null,null,null,null,null,null,null,null,"Taxes/Fees - Sales Tax",121000,121200,null,null,null,121200,null,"121200 - Taxes/Fees - Sales Tax"]
[null,null,null,null,null,null,null,null,null,null,null,null,null,null,null,null,null,"Taxes/Fees - Zoning/Permitting Fees",121000,121300,null,null,null,121300,null,"121300 - Taxes/Fees - Zoning/Permitting Fees"]
[null,null,null,null,null,null,null,null,null,null,null,null,null,null,null,null,null,"Telephone Equipment & Services",122000,null,null,null,null,122000,null,"122000 - Telephone Equipment & Services"]
[null,null,null,null,null,null,null,null,null,null,null,null,null,null,null,null,null,"Telephones - Cellular",122000,122200,null,null,null,122200,null,"122200 - Telephones - Cellular"]
[null,null,null,null,null,null,null,null,null,null,null,null,null,null,null,null,null,"Telephones - Handsets",122000,122100,null,null,null,122100,null,"122100 - Telephones - Handsets"]
[null,null,null,null,null,null,null,null,null,null,null,null,null,null,null,null,null,"Telephones - Parts",122000,122300,null,null,null,122300,null,"122300 - Telephones - Parts"]
[null,null,null,null,null,null,null,null,null,null,null,null,null,null,null,null,null,"Telephones - Repair/Support",122000,122400,null,null,null,122400,null,"122400 - Telephones - Repair/Support"]
[null,null,null,null,null,null,null,null,null,null,null,null,null,null,null,null,null,"Travel",123000,null,null,null,null,123000,null,"123000 - Travel"]
[null,null,null,null,null,null,null,null,null,null,null,null,null,null,null,null,null,"Travel - Airfare",123000,123001,null,null,null,123001,null,"123001 - Travel - Airfare"]
[null,null,null,null,null,null,null,null,null,null,null,null,null,null,null,null,null,"Travel - Car Rental",123000,123003,null,null,null,123003,null,"123003 - Travel - Car Rental"]
[null,null,null,null,null,null,null,null,null,null,null,null,null,null,null,null,null,"Travel - Charter Bus Service",123000,123002,null,null,null,123002,null,"123002 - Travel - Charter Bus Service"]
[null,null,null,null,null,null,null,null,null,null,null,null,null,null,null,null,null,"Travel - Conference Registration Fees",123000,123006,null,null,null,123006,null,"123006 - Travel - Conference Registration Fees"]
[null,null,null,null,null,null,null,null,null,null,null,null,null,null,null,null,null,"Travel - Hotel/Lodging",123000,123007,null,null,null,123007,null,"123007 - Travel - Hotel/Lodging"]
[null,null,null,null,null,null,null,null,null,null,null,null,null,null,null,null,null,"Travel - Meals",123000,123008,null,null,null,{"$f":"IF(U310<>\"\",U310,IF(T310<>\"\",T310,S310))","v":123008},null,{"$f":"IF(U310<>\"\",U310&\" - \"&_xlfn.XLOOKUP(U310,U:U,R:R),IF(T310<>\"\",T310&\" - \"&_xlfn.XLOOKUP(T310,T:T,R:R),IF(S310<>\"\",S310&\" - \"&_xlfn.XLOOKUP(S310,S:S,R:R),\"\")))","v":"123008 - Travel - Meals"}]
[null,null,null,null,null,null,null,null,null,null,null,null,null,null,null,null,null,"Travel - Other",123000,123005,null,null,null,123005,null,"123005 - Travel - Other"]
[null,null,null,null,null,null,null,null,null,null,null,null,null,null,null,null,null,"Travel - Other (Taxi/Tolls/Parking)",123000,123009,null,null,null,123009,null,"123009 - Travel - Other (Taxi/Tolls/Parking)"]
[null,null,null,null,null,null,null,null,null,null,null,null,null,null,null,null,null,"Travel - Personal Car Mile Reimbursement",123000,123004,null,null,null,123004,null,"123004 - Travel - Personal Car Mile Reimbursement"]
[null,null,null,null,null,null,null,null,null,null,null,null,null,null,null,null,null,"Utilities",210500,null,null,null,null,210500,null,"210500 - Utilities"]
[null,null,null,null,null,null,null,null,null,null,null,null,null,null,null,null,null,"Utilities - Electricity",210500,210510,null,null,null,210510,null,"210510 - Utilities - Electricity"]
[null,null,null,null,null,null,null,null,null,null,null,null,null,null,null,null,null,"Utilities - Internet Services",210500,210520,null,null,null,210520,null,"210520 - Utilities - Internet Services"]
[null,null,null,null,null,null,null,null,null,null,null,null,null,null,null,null,null,"Utilities - Miscellaneous",210500,210570,null,null,null,210570,null,"210570 - Utilities - Miscellaneous"]
[null,null,null,null,null,null,null,null,null,null,null,null,null,null,null,null,null,"Utilities - Natural Gas",210500,210530,null,null,null,210530,null,"210530 - Utilities - Natural Gas"]
[null,null,null,null,null,null,null,null,null,null,null,null,null,null,null,null,null,"Utilities - Phone",210500,210540,null,null,null,210540,null,"210540 - Utilities - Phone"]
[null,null,null,null,null,null,null,null,null,null,null,null,null,null,null,null,null,"Utilities - Sewer",210500,210550,null,null,null,210550,null,"210550 - Utilities - Sewer"]
[null,null,null,null,null,null,null,null,null,null,null,null,null,null,null,null,null,"Utilities - Trash",210500,210560,null,null,null,210560,null,"210560 - Utilities - Trash"]
[null,null,null,null,null,null,null,null,null,null,null,null,null,null,null,null,null,"Utilities - Water",210500,210580,null,null,null,210580,null,"210580 - Utilities - Water"]
[null,null,null,null,null,null,null,null,null,null,null,null,null,null,null,null,null,"Vacation Bible School",216500,null,null,null,null,216500,null,"216500 - Vacation Bible School"]
[null,null,null,null,null,null,null,null,null,null,null,null,null,null,null,null,null,"VBS - Curriculum",216500,216510,null,null,null,216510,null,"216510 - VBS - Curriculum"]
[null,null,null,null,null,null,null,null,null,null,null,null,null,null,null,null,null,"VBS - Marketing",216500,216520,null,null,null,216520,null,"216520 - VBS - Marketing"]
[null,null,null,null,null,null,null,null,null,null,null,null,null,null,null,null,null,"VBS - Supplies",216500,216530,null,null,null,216530,null,"216530 - VBS - Supplies"]
[null,null,null,null,null,null,null,null,null,null,null,null,null,null,null,null,null,"Window Coverings",124000,null,null,null,null,124000,null,"124000 - Window Coverings"]
[null,null,null,null,null,null,null,null,null,null,null,null,null,null,null,null,null,"Window Coverings - Custom",124000,124100,null,null,null,124100,null,"124100 - Window Coverings - Custom"]
[null,null,null,null,null,null,null,null,null,null,null,null,null,null,null,null,null,"Window Coverings - Drapes/Curtains",124000,124200,null,null,null,124200,null,"124200 - Window Coverings - Drapes/Curtains"]
[null,null,null,null,null,null,null,null,null,null,null,null,null,null,null,null,null,"Window Coverings - Installation",124000,124600,null,null,null,124600,null,"124600 - Window Coverings - Installation"]
[null,null,null,null,null,null,null,null,null,null,null,null,null,null,null,null,null,"Window Coverings - Roller Shades",124000,124300,null,null,null,124300,null,"124300 - Window Coverings - Roller Shades"]
[null,null,null,null,null,null,null,null,null,null,null,null,null,null,null,null,null,"Window Coverings - Venetian Blinds",124000,124400,null,null,null,124400,null,"124400 - Window Coverings - Venetian Blinds"]
[null,null,null,null,null,null,null,null,null,null,null,null,null,null,null,null,null,"Window Coverings - Vertical Blinds",124000,124500,null,null,null,124500,null,"124500 - Window Coverings - Vertical Blinds"]
[null,null,null,null,null,null,null,null,null,null,null,null,null,null,null,null,null,"Worship Service",214500,null,null,null,null,214500,null,"214500 - Worship Service"]
[null,null,null,null,null,null,null,null,null,null,null,null,null,null,null,null,null,"WS - Floral Arrangements",214500,214530,null,null,null,214530,null,"214530 - WS - Floral Arrangements"]
[null,null,null,null,null,null,null,null,null,null,null,null,null,null,null,null,null,"WS - Lord's Supper",214500,214540,null,null,null,214540,null,"214540 - WS - Lord's Supper"]
[null,null,null,null,null,null,null,null,null,null,null,null,null,null,null,null,null,"WS - Music",214500,214550,null,null,null,214550,null,"214550 - WS - Music"]
[null,null,null,null,null,null,null,null,null,null,null,null,null,null,null,null,null,"WS - Music Equipment",214500,214550,214551,null,null,214551,null,"214551 - WS - Music Equipment"]
[null,null,null,null,null,null,null,null,null,null,null,null,null,null,null,null,null,"WS - Music Equipment Maintenance",214500,214550,214552,null,null,214552,null,"214552 - WS - Music Equipment Maintenance"]
[null,null,null,null,null,null,null,null,null,null,null,null,null,null,null,null,null,"WS - Supplies, Other than Lord's Supper",214500,214520,null,null,null,214520,null,"214520 - WS - Supplies, Other than Lord's Supper"]
[null,null,null,null,null,null,null,null,null,null,null,null,null,null,null,null,null,"Youth - Other Expenses",218000,null,null,null,null,218000,null,"218000 - Youth - Other Expenses"]

{"sheet":"Monthly","index":1,"n_rows":93,"n_cols":7,"rows_kept":93,"cut":false,"hidden":false,"merged":[[0,0,0,6],[47,0,47,6]]}
["MONTHLY EXPENSE REPORT"]
[]
["Budget Name:",null,null,null,"Month:"]
[]
[null,null,null,null,"Year:"]
["Budget Administrator Signature:"]
[]
[null,null,null,null,null,"Beginning Balance:"]
["Date","Merchant/Payee","Budget Cost Center","Commodity Code","Receipt","Payment","Balance"]
[null,null,null,null,null,null,{"$f":"G$8-SUM(INDEX(Table5[Payment],1):Table5[[#This Row],[Payment]])","v":0}]
[null,null,null,null,null,null,{"$f":"G$8-SUM(INDEX(Table5[Payment],1):Table5[[#This Row],[Payment]])","v":0}]
[null,null,null,null,null,null,{"$f":"G$8-SUM(INDEX(Table5[Payment],1):Table5[[#This Row],[Payment]])","v":0}]
[null,null,null,null,null,null,{"$f":"G$8-SUM(INDEX(Table5[Payment],1):Table5[[#This Row],[Payment]])","v":0}]
[null,null,null,null,null,null,{"$f":"G$8-SUM(INDEX(Table5[Payment],1):Table5[[#This Row],[Payment]])","v":0}]
[null,null,null,null,null,null,{"$f":"G$8-SUM(INDEX(Table5[Payment],1):Table5[[#This Row],[Payment]])","v":0}]
[null,null,null,null,null,null,{"$f":"G$8-SUM(INDEX(Table5[Payment],1):Table5[[#This Row],[Payment]])","v":0}]
[null,null,null,null,null,null,{"$f":"G$8-SUM(INDEX(Table5[Payment],1):Table5[[#This Row],[Payment]])","v":0}]
[null,null,null,null,null,null,{"$f":"G$8-SUM(INDEX(Table5[Payment],1):Table5[[#This Row],[Payment]])","v":0}]
[null,null,null,null,null,null,{"$f":"G$8-SUM(INDEX(Table5[Payment],1):Table5[[#This Row],[Payment]])","v":0}]
[null,null,null,null,null,null,{"$f":"G$8-SUM(INDEX(Table5[Payment],1):Table5[[#This Row],[Payment]])","v":0}]
[null,null,null,null,null,null,{"$f":"G$8-SUM(INDEX(Table5[Payment],1):Table5[[#This Row],[Payment]])","v":0}]
[null,null,null,null,null,null,{"$f":"G$8-SUM(INDEX(Table5[Payment],1):Table5[[#This Row],[Payment]])","v":0}]
[null,null,null,null,null,null,{"$f":"G$8-SUM(INDEX(Table5[Payment],1):Table5[[#This Row],[Payment]])","v":0}]
[null,null,null,null,null,null,{"$f":"G$8-SUM(INDEX(Table5[Payment],1):Table5[[#This Row],[Payment]])","v":0}]
[null,null,null,null,null,null,{"$f":"G$8-SUM(INDEX(Table5[Payment],1):Table5[[#This Row],[Payment]])","v":0}]
[null,null,null,null,null,null,{"$f":"G$8-SUM(INDEX(Table5[Payment],1):Table5[[#This Row],[Payment]])","v":0}]
[null,null,null,null,null,null,{"$f":"G$8-SUM(INDEX(Table5[Payment],1):Table5[[#This Row],[Payment]])","v":0}]
[null,null,null,null,null,null,{"$f":"G$8-SUM(INDEX(Table5[Payment],1):Table5[[#This Row],[Payment]])","v":0}]
[null,null,null,null,null,null,{"$f":"G$8-SUM(INDEX(Table5[Payment],1):Table5[[#This Row],[Payment]])","v":0}]
[null,null,null,null,null,null,{"$f":"G$8-SUM(INDEX(Table5[Payment],1):Table5[[#This Row],[Payment]])","v":0}]
[null,null,null,null,null,null,{"$f":"G$8-SUM(INDEX(Table5[Payment],1):Table5[[#This Row],[Payment]])","v":0}]
[null,null,null,null,null,null,{"$f":"G$8-SUM(INDEX(Table5[Payment],1):Table5[[#This Row],[Payment]])","v":0}]
[null,null,null,null,null,null,{"$f":"G$8-SUM(INDEX(Table5[Payment],1):Table5[[#This Row],[Payment]])","v":0}]
[null,null,null,null,null,null,{"$f":"G$8-SUM(INDEX(Table5[Payment],1):Table5[[#This Row],[Payment]])","v":0}]
[null,null,null,null,null,null,{"$f":"G$8-SUM(INDEX(Table5[Payment],1):Table5[[#This Row],[Payment]])","v":0}]
[null,null,null,null,null,null,{"$f":"G$8-SUM(INDEX(Table5[Payment],1):Table5[[#This Row],[Payment]])","v":0}]
[null,null,null,null,null,null,{"$f":"G$8-SUM(INDEX(Table5[Payment],1):Table5[[#This Row],[Payment]])","v":0}]
[null,null,null,null,null,null,{"$f":"G$8-SUM(INDEX(Table5[Payment],1):Table5[[#This Row],[Payment]])","v":0}]
[null,null,null,null,null,null,{"$f":"G$8-SUM(INDEX(Table5[Payment],1):Table5[[#This Row],[Payment]])","v":0}]
[null,null,null,null,null,null,{"$f":"G$8-SUM(INDEX(Table5[Payment],1):Table5[[#This Row],[Payment]])","v":0}]
[null,null,null,null,null,null,{"$f":"G$8-SUM(INDEX(Table5[Payment],1):Table5[[#This Row],[Payment]])","v":0}]
[null,null,null,null,null,null,{"$f":"G$8-SUM(INDEX(Table5[Payment],1):Table5[[#This Row],[Payment]])","v":0}]
[null,null,null,null,null,null,{"$f":"G$8-SUM(INDEX(Table5[Payment],1):Table5[[#This Row],[Payment]])","v":0}]
[null,null,null,null,null,null,{"$f":"G$8-SUM(INDEX(Table5[Payment],1):Table5[[#This Row],[Payment]])","v":0}]
[]
[null,null,null,null,null,null,"Page 1 of 1"]
[]
["MONTHLY EXPENSE REPORT"]
[]
["Budget Name:",{"$f":"B$3","v":0},null,null,"Month:",{"$f":"F$3","v":0}]
[]
[null,null,null,null,"Year:",{"$f":"F$5","v":0}]
["Budget Administrator Signature:"]
[]
[null,null,null,null,null,"Beginning Balance:",{"$f":"G44","v":0}]
["Date","Merchant/Payee","Budget Cost Center","Commodity Code","Receipt","Payment","Balance"]
[null,null,null,null,null,null,{"$f":"G$8-SUM(INDEX(Table54[Payment],1):Table54[[#This Row],[Payment]])","v":0}]
[null,null,null,null,null,null,{"$f":"G$8-SUM(INDEX(Table54[Payment],1):Table54[[#This Row],[Payment]])","v":0}]
[null,null,null,null,null,null,{"$f":"G$8-SUM(INDEX(Table54[Payment],1):Table54[[#This Row],[Payment]])","v":0}]
[null,null,null,null,null,null,{"$f":"G$8-SUM(INDEX(Table54[Payment],1):Table54[[#This Row],[Payment]])","v":0}]
[null,null,null,null,null,null,{"$f":"G$8-SUM(INDEX(Table54[Payment],1):Table54[[#This Row],[Payment]])","v":0}]
[null,null,null,null,null,null,{"$f":"G$8-SUM(INDEX(Table54[Payment],1):Table54[[#This Row],[Payment]])","v":0}]
[null,null,null,null,null,null,{"$f":"G$8-SUM(INDEX(Table54[Payment],1):Table54[[#This Row],[Payment]])","v":0}]
[null,null,null,null,null,null,{"$f":"G$8-SUM(INDEX(Table54[Payment],1):Table54[[#This Row],[Payment]])","v":0}]
[null,null,null,null,null,null,{"$f":"G$8-SUM(INDEX(Table54[Payment],1):Table54[[#This Row],[Payment]])","v":0}]
[null,null,null,null,null,null,{"$f":"G$8-SUM(INDEX(Table54[Payment],1):Table54[[#This Row],[Payment]])","v":0}]
[null,null,null,null,null,null,{"$f":"G$8-SUM(INDEX(Table54[Payment],1):Table54[[#This Row],[Payment]])","v":0}]
[null,null,null,null,null,null,{"$f":"G$8-SUM(INDEX(Table54[Payment],1):Table54[[#This Row],[Payment]])","v":0}]
[null,null,null,null,null,null,{"$f":"G$8-SUM(INDEX(Table54[Payment],1):Table54[[#This Row],[Payment]])","v":0}]
[null,null,null,null,null,null,{"$f":"G$8-SUM(INDEX(Table54[Payment],1):Table54[[#This Row],[Payment]])","v":0}]
[null,null,null,null,null,null,{"$f":"G$8-SUM(INDEX(Table54[Payment],1):Table54[[#This Row],[Payment]])","v":0}]
[null,null,null,null,null,null,{"$f":"G$8-SUM(INDEX(Table54[Payment],1):Table54[[#This Row],[Payment]])","v":0}]
[null,null,null,null,null,null,{"$f":"G$8-SUM(INDEX(Table54[Payment],1):Table54[[#This Row],[Payment]])","v":0}]
[null,null,null,null,null,null,{"$f":"G$8-SUM(INDEX(Table54[Payment],1):Table54[[#This Row],[Payment]])","v":0}]
[null,null,null,null,null,null,{"$f":"G$8-SUM(INDEX(Table54[Payment],1):Table54[[#This Row],[Payment]])","v":0}]
[null,null,null,null,null,null,{"$f":"G$8-SUM(INDEX(Table54[Payment],1):Table54[[#This Row],[Payment]])","v":0}]
[null,null,null,null,null,null,{"$f":"G$8-SUM(INDEX(Table54[Payment],1):Table54[[#This Row],[Payment]])","v":0}]
[null,null,null,null,null,null,{"$f":"G$8-SUM(INDEX(Table54[Payment],1):Table54[[#This Row],[Payment]])","v":0}]
[null,null,null,null,null,null,{"$f":"G$8-SUM(INDEX(Table54[Payment],1):Table54[[#This Row],[Payment]])","v":0}]
[null,null,null,null,null,null,{"$f":"G$8-SUM(INDEX(Table54[Payment],1):Table54[[#This Row],[Payment]])","v":0}]
[null,null,null,null,null,null,{"$f":"G$8-SUM(INDEX(Table54[Payment],1):Table54[[#This Row],[Payment]])","v":0}]
[null,null,null,null,null,null,{"$f":"G$8-SUM(INDEX(Table54[Payment],1):Table54[[#This Row],[Payment]])","v":0}]
[null,null,null,null,null,null,{"$f":"G$8-SUM(INDEX(Table54[Payment],1):Table54[[#This Row],[Payment]])","v":0}]
[null,null,null,null,null,null,{"$f":"G$8-SUM(INDEX(Table54[Payment],1):Table54[[#This Row],[Payment]])","v":0}]
[null,null,null,null,null,null,{"$f":"G$8-SUM(INDEX(Table54[Payment],1):Table54[[#This Row],[Payment]])","v":0}]
[null,null,null,null,null,null,{"$f":"G$8-SUM(INDEX(Table54[Payment],1):Table54[[#This Row],[Payment]])","v":0}]
[null,null,null,null,null,null,{"$f":"G$8-SUM(INDEX(Table54[Payment],1):Table54[[#This Row],[Payment]])","v":0}]
[null,null,null,null,null,null,{"$f":"G$8-SUM(INDEX(Table54[Payment],1):Table54[[#This Row],[Payment]])","v":0}]
[null,null,null,null,null,null,{"$f":"G$8-SUM(INDEX(Table54[Payment],1):Table54[[#This Row],[Payment]])","v":0}]
[null,null,null,null,null,null,{"$f":"G$8-SUM(INDEX(Table54[Payment],1):Table54[[#This Row],[Payment]])","v":0}]
[null,null,null,null,null,null,{"$f":"G$8-SUM(INDEX(Table54[Payment],1):Table54[[#This Row],[Payment]])","v":0}]
[]
[null,null,null,null,null,null,"Page 2 of 2"]